[Event "*** Titled Tuesday Blitz"]
[Site "Chess.com"]
[Date "2020.04.21"]
[Round "1"]
[White "Igrok3069"]
[Black "juniortay"]
[Result "1-0"]
[WhiteElo "2770"]
[BlackElo "2400"]
[TimeControl "180+1"]
[EndTime "10:08:12 PDT"]
[Termination "Igrok3069 won by checkmate"]

1. d4 {[%clk 0:03:00.9]} 1... d5 {[%clk 0:02:33.4]} 2. c4 {[%clk 0:02:59.3]}
2... e6 {[%clk 0:02:33.6]} 3. Nc3 {[%clk 0:02:58.5]} 3... c5 {[%clk 0:02:34.1]}
4. cxd5 {[%clk 0:02:57.5]} 4... exd5 {[%clk 0:02:33.6]} 5. Nf3 {[%clk
0:02:57.2]} 5... Nc6 {[%clk 0:02:34.3]} 6. dxc5 {[%clk 0:02:56.7]} 6... d4
{[%clk 0:02:33.6]} 7. Na4 {[%clk 0:02:55.9]} 7... Bxc5 {[%clk 0:02:33.7]} 8.
Nxc5 {[%clk 0:02:55.4]} 8... Qa5+ {[%clk 0:02:33.7]} 9. Bd2 {[%clk 0:02:53.7]}
9... Qxc5 {[%clk 0:02:34.1]} 10. e3 {[%clk 0:02:53.9]} 10... dxe3 {[%clk
0:02:30.1]} 11. Bxe3 {[%clk 0:02:53.5]} 11... Qb4+ {[%clk 0:02:28.7]} 12. Qd2
{[%clk 0:02:53.5]} 12... Qxd2+ {[%clk 0:02:27.6]} 13. Nxd2 {[%clk 0:02:53]}
13... Nf6 {[%clk 0:02:28.5]} 14. Bc4 {[%clk 0:02:48.7]} 14... O-O {[%clk
0:02:27.8]} 15. O-O {[%clk 0:02:46.4]} 15... Ne5 {[%clk 0:02:28.3]} 16. Bb3
{[%clk 0:02:45.9]} 16... Bf5 {[%clk 0:02:28.7]} 17. Bd4 {[%clk 0:02:42.6]} 17...
Nd3 {[%clk 0:02:28.1]} 18. Nc4 {[%clk 0:02:29]} 18... Rfd8 {[%clk 0:02:25]} 19.
Ne3 {[%clk 0:02:01.7]} 19... Bg6 {[%clk 0:02:22.6]} 20. Bxf6 {[%clk 0:01:52.4]}
20... gxf6 {[%clk 0:02:22.4]} 21. Rab1 {[%clk 0:01:42.3]} 21... Nf4 {[%clk
0:02:08.6]} 22. Rbd1 {[%clk 0:01:40.1]} 22... Kf8 {[%clk 0:01:59.7]} 23. h4
{[%clk 0:01:32.5]} 23... h5 {[%clk 0:01:58.6]} 24. g3 {[%clk 0:01:25.7]} 24...
Ne2+ {[%clk 0:01:56.9]} 25. Kh2 {[%clk 0:01:15.1]} 25... Nd4 {[%clk 0:01:57.8]}
26. Bd5 {[%clk 0:01:14.1]} 26... Nc2 {[%clk 0:01:48.3]} 27. Bxb7 {[%clk
0:01:06.7]} 27... Nxe3 {[%clk 0:01:40.4]} 28. fxe3 {[%clk 0:01:00.9]} 28... Rab8
{[%clk 0:01:40.7]} 29. Rxd8+ {[%clk 0:00:58.9]} 29... Rxd8 {[%clk 0:01:41.6]}
30. Rf2 {[%clk 0:00:58.9]} 30... Rd3 {[%clk 0:01:28.7]} 31. Re2 {[%clk
0:00:56.3]} 31... Bf5 {[%clk 0:01:26]} 32. Bf3 {[%clk 0:00:55.1]} 32... Rd1
{[%clk 0:01:20.2]} 33. Kg2 {[%clk 0:00:49.3]} 33... Bd3 {[%clk 0:01:10.5]} 34.
Rf2 {[%clk 0:00:47.6]} 34... Re1 {[%clk 0:01:09.7]} 35. Rd2 {[%clk 0:00:44.1]}
35... Bg6 {[%clk 0:01:00.9]} 36. Kf2 {[%clk 0:00:43.8]} 36... Ra1 {[%clk
0:01:00.7]} 37. b3 {[%clk 0:00:39.8]} 37... Ke7 {[%clk 0:01:01]} 38. Bd5 {[%clk
0:00:32.6]} 38... a5 {[%clk 0:01:00.1]} 39. a4 {[%clk 0:00:31.8]} 39... Rb1
{[%clk 0:00:59.2]} 40. e4 {[%clk 0:00:30.7]} 40... f5 {[%clk 0:00:53.2]} 41. e5
{[%clk 0:00:27.1]} 41... Rc1 {[%clk 0:00:43.8]} 42. Bc4 {[%clk 0:00:26.5]} 42...
Rc3 {[%clk 0:00:42.7]} 43. Re2 {[%clk 0:00:21.5]} 43... f4 {[%clk 0:00:38.7]}
44. gxf4 {[%clk 0:00:19.9]} 44... Rh3 {[%clk 0:00:39.3]} 45. e6 {[%clk
0:00:16.2]} 45... f6 {[%clk 0:00:39]} 46. Rd2 {[%clk 0:00:16.1]} 46... Be8
{[%clk 0:00:39.1]} 47. Rd5 {[%clk 0:00:14.8]} 47... Rxh4 {[%clk 0:00:38.2]} 48.
Rxa5 {[%clk 0:00:14.9]} 48... Rxf4+ {[%clk 0:00:38.4]} 49. Ke3 {[%clk
0:00:13.7]} 49... Rg4 {[%clk 0:00:35.2]} 50. Ra7+ {[%clk 0:00:14.6]} 50... Kd6
{[%clk 0:00:34.5]} 51. Ra6+ {[%clk 0:00:14.3]} 51... Ke7 {[%clk 0:00:34.6]} 52.
Ra7+ {[%clk 0:00:14]} 52... Kd6 {[%clk 0:00:34.7]} 53. Ra8 {[%clk 0:00:14.2]}
53... Ke7 {[%clk 0:00:34.1]} 54. a5 {[%clk 0:00:09.5]} 54... h4 {[%clk
0:00:34.1]} 55. a6 {[%clk 0:00:09.5]} 55... h3 {[%clk 0:00:34.5]} 56. Rxe8+
{[%clk 0:00:09]} 56... Kxe8 {[%clk 0:00:31.3]} 57. a7 {[%clk 0:00:09.9]} 57...
Rg3+ {[%clk 0:00:27.1]} 58. Kf4 {[%clk 0:00:09.4]} 58... Ke7 {[%clk 0:00:20.8]}
59. a8=Q {[%clk 0:00:09.3]} 59... h2 {[%clk 0:00:21.7]} 60. Qb7+ {[%clk
0:00:09.1]} 60... Kd6 {[%clk 0:00:22.6]} 61. Qd5+ {[%clk 0:00:08.1]} 61... Ke7
{[%clk 0:00:22.5]} 62. Qd7+ {[%clk 0:00:07.2]} 62... Kf8 {[%clk 0:00:23.4]} 63.
Qf7# {[%clk 0:00:07.1]} 1-0

[Event "*** Titled Tuesday Blitz"]
[Site "Chess.com"]
[Date "2020.04.21"]
[Round "1"]
[White "GMNeiksans"]
[Black "dpruess"]
[Result "1-0"]
[WhiteElo "2882"]
[BlackElo "2453"]
[TimeControl "180+1"]
[EndTime "10:08:13 PDT"]
[Termination "GMNeiksans won by resignation"]

1. e4 {[%clk 0:03:00.9]} 1... c5 {[%clk 0:02:58.2]} 2. Nf3 {[%clk 0:03:00.2]}
2... d6 {[%clk 0:02:55.3]} 3. Bb5+ {[%clk 0:02:58.4]} 3... Bd7 {[%clk
0:02:52.6]} 4. Bxd7+ {[%clk 0:02:57.2]} 4... Qxd7 {[%clk 0:02:51.6]} 5. c4
{[%clk 0:02:56.4]} 5... Nf6 {[%clk 0:02:45.3]} 6. Nc3 {[%clk 0:02:55.7]} 6... e6
{[%clk 0:02:39.3]} 7. O-O {[%clk 0:02:53]} 7... Be7 {[%clk 0:02:38.1]} 8. d4
{[%clk 0:02:52.4]} 8... cxd4 {[%clk 0:02:36]} 9. Nxd4 {[%clk 0:02:53.3]} 9...
O-O {[%clk 0:02:36]} 10. b3 {[%clk 0:02:24.4]} 10... Nc6 {[%clk 0:02:31.3]} 11.
Be3 {[%clk 0:02:12.9]} 11... Rfd8 {[%clk 0:02:08.9]} 12. Qe2 {[%clk 0:01:55.5]}
12... d5 {[%clk 0:01:34.1]} 13. Rad1 {[%clk 0:01:24.9]} 13... Bb4 {[%clk
0:00:16.8]} 14. exd5 {[%clk 0:00:49.7]} 14... exd5 {[%clk 0:00:14.5]} 15. Nxc6
{[%clk 0:00:46.2]} 15... bxc6 {[%clk 0:00:13.9]} 16. Bd4 {[%clk 0:00:44.3]}
16... Bxc3 {[%clk 0:00:13.7]} 17. Bxc3 {[%clk 0:00:43.9]} 17... Ne4 {[%clk
0:00:12.4]} 18. Ba1 {[%clk 0:00:39.4]} 18... Qf5 {[%clk 0:00:12.4]} 19. cxd5
{[%clk 0:00:36.9]} 19... cxd5 {[%clk 0:00:13.3]} 20. Qe3 {[%clk 0:00:30.6]}
20... a6 {[%clk 0:00:13]} 21. Qd4 {[%clk 0:00:29.7]} 21... Qg6 {[%clk
0:00:11.4]} 22. f3 {[%clk 0:00:24.5]} 22... Nf6 {[%clk 0:00:09.6]} 23. Qd3
{[%clk 0:00:21.6]} 23... Qxd3 {[%clk 0:00:08.8]} 24. Rxd3 {[%clk 0:00:22.5]}
24... Rac8 {[%clk 0:00:08.4]} 25. Rfd1 {[%clk 0:00:22.2]} 25... Rc2 {[%clk
0:00:08.4]} 26. a4 {[%clk 0:00:17.8]} 26... Ra2 {[%clk 0:00:07.6]} 27. Bxf6
{[%clk 0:00:15.6]} 27... gxf6 {[%clk 0:00:08.5]} 28. Rxd5 {[%clk 0:00:15.8]}
28... Rc8 {[%clk 0:00:08.3]} 29. Rd8+ {[%clk 0:00:15.4]} 29... Rxd8 {[%clk
0:00:08.6]} 30. Rxd8+ {[%clk 0:00:16.1]} 30... Kg7 {[%clk 0:00:09.5]} 31. Rd6
{[%clk 0:00:15.2]} 31... a5 {[%clk 0:00:08.6]} 32. Rd5 {[%clk 0:00:15]} 32...
Rb2 {[%clk 0:00:09.1]} 33. Rb5 {[%clk 0:00:15.2]} 33... Kg6 {[%clk 0:00:08.2]}
34. h4 {[%clk 0:00:14.3]} 34... f5 {[%clk 0:00:07.5]} 35. Kh2 {[%clk 0:00:14.5]}
35... f4 {[%clk 0:00:07]} 36. Rxa5 {[%clk 0:00:12.3]} 36... Rxb3 {[%clk
0:00:06.7]} 37. Rg5+ {[%clk 0:00:11.6]} 37... Kf6 {[%clk 0:00:06.2]} 38. Kh3
{[%clk 0:00:11.2]} 38... Rb2 {[%clk 0:00:05.8]} 39. Rb5 {[%clk 0:00:06.6]} 39...
Ra2 {[%clk 0:00:05.9]} 40. a5 {[%clk 0:00:06.4]} 40... Kg6 {[%clk 0:00:05.7]}
41. h5+ {[%clk 0:00:06.6]} 41... Kf6 {[%clk 0:00:05.7]} 42. Kg4 {[%clk
0:00:05.7]} 42... Rxg2+ {[%clk 0:00:04.9]} 43. Kxf4 {[%clk 0:00:06.1]} 43... Ra2
{[%clk 0:00:05.8]} 44. Rb6+ {[%clk 0:00:05.9]} 44... Ke7 {[%clk 0:00:04.3]} 45.
a6 {[%clk 0:00:06.5]} 45... Ra5 {[%clk 0:00:03.6]} 46. Kg4 {[%clk 0:00:07]}
46... Kf8 {[%clk 0:00:03.5]} 47. h6 {[%clk 0:00:06.7]} 47... Ke7 {[%clk
0:00:03.7]} 48. f4 {[%clk 0:00:07.1]} 48... Ra3 {[%clk 0:00:02.7]} 49. Kf5
{[%clk 0:00:06.9]} 49... Ra5+ {[%clk 0:00:03.3]} 50. Ke4 {[%clk 0:00:07.2]}
50... Ra2 {[%clk 0:00:03.7]} 51. Kd3 {[%clk 0:00:06.7]} 51... Ra4 {[%clk
0:00:03.8]} 52. Kc3 {[%clk 0:00:06.5]} 52... Rxf4 {[%clk 0:00:03.6]} 53. Kb3
{[%clk 0:00:05.3]} 53... Rf1 {[%clk 0:00:03.7]} 54. Rb4 {[%clk 0:00:05.3]} 54...
Ra1 {[%clk 0:00:03.5]} 55. Ra4 {[%clk 0:00:05.1]} 55... Rb1+ {[%clk 0:00:03.7]}
56. Kc4 {[%clk 0:00:05.5]} 56... Rb8 {[%clk 0:00:04.3]} 57. Kc5 {[%clk
0:00:05.4]} 57... Ra8 {[%clk 0:00:04.7]} 58. Kb6 {[%clk 0:00:05.3]} 58... Kf6
{[%clk 0:00:05.3]} 59. Kb7 {[%clk 0:00:05.6]} 59... Rxa6 {[%clk 0:00:05.3]} 60.
Rxa6+ {[%clk 0:00:05.1]} 60... Kg5 {[%clk 0:00:06.2]} 61. Kc7 {[%clk 0:00:05.4]}
1-0

[Event "*** Titled Tuesday Blitz"]
[Site "Chess.com"]
[Date "2020.04.21"]
[Round "1"]
[White "pouya21"]
[Black "sergeikim"]
[Result "1-0"]
[WhiteElo "2796"]
[BlackElo "2417"]
[TimeControl "180+1"]
[EndTime "10:08:14 PDT"]
[Termination "pouya21 won on time"]

1. e4 {[%clk 0:02:55.5]} 1... e5 {[%clk 0:02:59.6]} 2. Nf3 {[%clk 0:02:54.7]}
2... Nc6 {[%clk 0:02:59.5]} 3. Bb5 {[%clk 0:02:53]} 3... a6 {[%clk 0:02:59.5]}
4. Ba4 {[%clk 0:02:52.6]} 4... Nf6 {[%clk 0:02:59.5]} 5. d3 {[%clk 0:02:52.4]}
5... b5 {[%clk 0:02:57.8]} 6. Bb3 {[%clk 0:02:52.5]} 6... Be7 {[%clk 0:02:58.7]}
7. a3 {[%clk 0:02:50.9]} 7... O-O {[%clk 0:02:57.9]} 8. Nc3 {[%clk 0:02:51.2]}
8... d6 {[%clk 0:02:57.5]} 9. Nd5 {[%clk 0:02:49.6]} 9... Be6 {[%clk 0:02:57.3]}
10. O-O {[%clk 0:02:43.4]} 10... Na5 {[%clk 0:02:54.8]} 11. Ba2 {[%clk
0:02:38.8]} 11... c6 {[%clk 0:02:54.7]} 12. Nxf6+ {[%clk 0:02:38.7]} 12... Bxf6
{[%clk 0:02:54.4]} 13. Bxe6 {[%clk 0:02:39.3]} 13... fxe6 {[%clk 0:02:53.9]} 14.
b4 {[%clk 0:02:39.7]} 14... Nb7 {[%clk 0:02:53.1]} 15. a4 {[%clk 0:02:39.4]}
15... Qd7 {[%clk 0:02:43.1]} 16. Bd2 {[%clk 0:02:36.8]} 16... c5 {[%clk
0:02:29.1]} 17. Qb1 {[%clk 0:02:31.1]} 17... Rfc8 {[%clk 0:02:21.8]} 18. Qb2
{[%clk 0:02:19.3]} 18... c4 {[%clk 0:02:20]} 19. Ra3 {[%clk 0:02:15.8]} 19...
Nd8 {[%clk 0:02:03.9]} 20. Rfa1 {[%clk 0:02:13.9]} 20... Rab8 {[%clk 0:02:03.8]}
21. axb5 {[%clk 0:02:13.2]} 21... axb5 {[%clk 0:02:03.8]} 22. Be3 {[%clk
0:02:07.3]} 22... h6 {[%clk 0:01:59.4]} 23. Ra7 {[%clk 0:02:06.2]} 23... Rb7
{[%clk 0:01:58.7]} 24. Rxb7 {[%clk 0:02:05.4]} 24... Nxb7 {[%clk 0:01:58]} 25.
h3 {[%clk 0:02:02.6]} 25... Qc6 {[%clk 0:01:55.1]} 26. Ra7 {[%clk 0:02:00.2]}
26... Nd8 {[%clk 0:01:49.4]} 27. Qa2 {[%clk 0:01:55.7]} 27... cxd3 {[%clk
0:01:41.5]} 28. cxd3 {[%clk 0:01:54.8]} 28... Qc2 {[%clk 0:01:37.4]} 29. Qxc2
{[%clk 0:01:44.4]} 29... Rxc2 {[%clk 0:01:36]} 30. Rb7 {[%clk 0:01:44.7]} 30...
Rb2 {[%clk 0:01:23.6]} 31. Rxb5 {[%clk 0:01:39.6]} 31... Nc6 {[%clk 0:01:20.8]}
32. Bd2 {[%clk 0:01:30.5]} 32... Nd4 {[%clk 0:01:11.9]} 33. Rb8+ {[%clk
0:01:30.4]} 33... Kh7 {[%clk 0:01:10.9]} 34. Nxd4 {[%clk 0:01:28.5]} 34... Rxd2
{[%clk 0:00:49.3]} 35. Nxe6 {[%clk 0:01:27.9]} 35... Rxd3 {[%clk 0:00:48.9]} 36.
b5 {[%clk 0:01:21.1]} 36... d5 {[%clk 0:00:47.2]} 37. exd5 {[%clk 0:01:19.2]}
37... Rxd5 {[%clk 0:00:45.9]} 38. b6 {[%clk 0:01:19.4]} 38... Rd1+ {[%clk
0:00:43.9]} 39. Kh2 {[%clk 0:01:19]} 39... e4 {[%clk 0:00:43.8]} 40. Nf8+ {[%clk
0:01:17.9]} 40... Kg8 {[%clk 0:00:43.2]} 41. Nd7+ {[%clk 0:01:18.3]} 41... Kh7
{[%clk 0:00:36.6]} 42. Nxf6+ {[%clk 0:01:14.1]} 42... gxf6 {[%clk 0:00:36.2]}
43. b7 {[%clk 0:01:13.1]} 43... Rb1 {[%clk 0:00:35.6]} 44. Kg3 {[%clk
0:01:13.4]} 44... Rb4 {[%clk 0:00:28.1]} 45. Kf4 {[%clk 0:01:13.1]} 45... Kg7
{[%clk 0:00:24.7]} 46. g4 {[%clk 0:01:10.7]} 46... Kh7 {[%clk 0:00:23.8]} 47. h4
{[%clk 0:01:09.7]} 47... Kg7 {[%clk 0:00:23.3]} 48. h5 {[%clk 0:01:09.4]} 48...
Kh7 {[%clk 0:00:22.8]} 49. Rf8 {[%clk 0:00:58]} 49... Rxb7 {[%clk 0:00:21.1]}
50. Rxf6 {[%clk 0:00:58.3]} 50... Rb4 {[%clk 0:00:16.9]} 51. Kg3 {[%clk
0:00:46]} 51... Kg7 {[%clk 0:00:15]} 52. Rg6+ {[%clk 0:00:46.2]} 52... Kh7
{[%clk 0:00:15]} 53. Re6 {[%clk 0:00:46.4]} 53... Kg7 {[%clk 0:00:13.4]} 54.
Re7+ {[%clk 0:00:46.3]} 54... Kf6 {[%clk 0:00:12.1]} 55. Rh7 {[%clk 0:00:46.2]}
55... Ke5 {[%clk 0:00:08.5]} 56. Rxh6 {[%clk 0:00:45.9]} 56... Rb3+ {[%clk
0:00:09]} 57. Kg2 {[%clk 0:00:46.1]} 57... Kf4 {[%clk 0:00:09.3]} 58. Rg6 {[%clk
0:00:46.1]} 58... Rb2 {[%clk 0:00:08.5]} 59. h6 {[%clk 0:00:46.3]} 59... e3
{[%clk 0:00:08.4]} 60. Rf6+ {[%clk 0:00:44]} 60... Kg5 {[%clk 0:00:08.2]} 61. h7
{[%clk 0:00:44.3]} 61... Rb8 {[%clk 0:00:05]} 62. Rb6 {[%clk 0:00:42.1]} 62...
exf2 {[%clk 0:00:03.3]} 63. Rxb8 {[%clk 0:00:41]} 1-0

[Event "*** Titled Tuesday Blitz"]
[Site "Chess.com"]
[Date "2020.04.21"]
[Round "1"]
[White "mirochka"]
[Black "ALeks_Ivlev"]
[Result "1/2-1/2"]
[WhiteElo "2171"]
[BlackElo "2533"]
[TimeControl "180+1"]
[EndTime "10:08:14 PDT"]
[Termination "Game drawn by repetition"]

1. e4 {[%clk 0:03:00.9]} 1... c5 {[%clk 0:02:56.6]} 2. b4 {[%clk 0:03:00.2]}
2... b6 {[%clk 0:02:55.9]} 3. bxc5 {[%clk 0:02:59.7]} 3... bxc5 {[%clk
0:02:56.3]} 4. Nc3 {[%clk 0:03:00]} 4... Nc6 {[%clk 0:02:55.2]} 5. Rb1 {[%clk
0:02:58.7]} 5... Nf6 {[%clk 0:02:53.7]} 6. Nf3 {[%clk 0:02:54.1]} 6... d6 {[%clk
0:02:53.2]} 7. Bc4 {[%clk 0:02:47.4]} 7... e6 {[%clk 0:02:53]} 8. O-O {[%clk
0:02:43.3]} 8... Be7 {[%clk 0:02:52.8]} 9. d4 {[%clk 0:02:33.9]} 9... cxd4
{[%clk 0:02:51.2]} 10. Nxd4 {[%clk 0:02:33.8]} 10... Nxd4 {[%clk 0:02:51.1]} 11.
Qxd4 {[%clk 0:02:34.3]} 11... O-O {[%clk 0:02:51.3]} 12. Rd1 {[%clk 0:02:26.9]}
12... Bd7 {[%clk 0:02:21.4]} 13. Ba3 {[%clk 0:02:23.3]} 13... Qc7 {[%clk
0:02:17.9]} 14. Nb5 {[%clk 0:02:17.9]} 14... Bxb5 {[%clk 0:02:17.3]} 15. Bxb5
{[%clk 0:02:18.3]} 15... Rfd8 {[%clk 0:02:16.6]} 16. Ba4 {[%clk 0:02:00]} 16...
d5 {[%clk 0:02:16.5]} 17. Bxe7 {[%clk 0:01:50.1]} 17... Qxe7 {[%clk 0:02:15.3]}
18. exd5 {[%clk 0:01:46.4]} 18... Rxd5 {[%clk 0:02:14.2]} 19. Qe3 {[%clk
0:01:34.9]} 19... Rad8 {[%clk 0:02:12.6]} 20. Rxd5 {[%clk 0:01:33.5]} 20... Nxd5
{[%clk 0:02:12.5]} 21. Qf3 {[%clk 0:01:28.5]} 21... g6 {[%clk 0:01:59.9]} 22.
Bb3 {[%clk 0:01:27.6]} 22... Nf6 {[%clk 0:01:46.4]} 23. h4 {[%clk 0:01:24.8]}
23... Kg7 {[%clk 0:01:44.7]} 24. g3 {[%clk 0:01:24.1]} 24... Rd4 {[%clk
0:01:38.7]} 25. Qe3 {[%clk 0:01:22.5]} 25... Qd6 {[%clk 0:01:37.3]} 26. Re1
{[%clk 0:01:20.9]} 26... Ng4 {[%clk 0:01:36.3]} 27. Qc3 {[%clk 0:01:18.6]} 27...
e5 {[%clk 0:01:30.2]} 28. Qf3 {[%clk 0:01:13.7]} 28... f5 {[%clk 0:01:06.4]} 29.
Qb7+ {[%clk 0:01:10.1]} 29... Kh6 {[%clk 0:01:06.1]} 30. Qxa7 {[%clk 0:00:56.7]}
30... Rd2 {[%clk 0:01:00.4]} 31. Rf1 {[%clk 0:00:54.9]} 31... e4 {[%clk
0:00:57.2]} 32. Bg8 {[%clk 0:00:51.9]} 32... Nf6 {[%clk 0:00:53.7]} 33. Bb3
{[%clk 0:00:50.5]} 33... f4 {[%clk 0:00:53.5]} 34. gxf4 {[%clk 0:00:45.7]} 34...
Rd1 {[%clk 0:00:35.2]} 35. c3 {[%clk 0:00:33.5]} 35... Rxf1+ {[%clk 0:00:34.7]}
36. Kxf1 {[%clk 0:00:34.1]} 36... Qd3+ {[%clk 0:00:31.8]} 37. Kg1 {[%clk
0:00:32.4]} 37... Ng4 {[%clk 0:00:20]} 38. Bg8 {[%clk 0:00:27.5]} 38... Qd1+
{[%clk 0:00:19.9]} 39. Kg2 {[%clk 0:00:23.1]} 39... Qf3+ {[%clk 0:00:20.2]} 40.
Kf1 {[%clk 0:00:22.7]} 40... Nf6 {[%clk 0:00:17.3]} 41. Bb3 {[%clk 0:00:20.5]}
41... Qxc3 {[%clk 0:00:17.1]} 42. Qe3 {[%clk 0:00:19.7]} 42... Qa1+ {[%clk
0:00:17.3]} 43. Kg2 {[%clk 0:00:19.6]} 43... Kg7 {[%clk 0:00:17.3]} 44. f5
{[%clk 0:00:18.5]} 44... Qe5 {[%clk 0:00:16.2]} 45. fxg6 {[%clk 0:00:17.7]}
45... hxg6 {[%clk 0:00:16.6]} 46. Qg3 {[%clk 0:00:17.4]} 46... Qd4 {[%clk
0:00:16.1]} 47. Qe3 {[%clk 0:00:14.4]} 47... Qe5 {[%clk 0:00:15.1]} 48. Qg3
{[%clk 0:00:14.1]} 48... Qe7 {[%clk 0:00:15.6]} 49. Qe3 {[%clk 0:00:14.1]} 49...
Nh5 {[%clk 0:00:14.8]} 50. Qg5 {[%clk 0:00:14.3]} 50... Qf8 {[%clk 0:00:11.1]}
51. Bc2 {[%clk 0:00:13.5]} 51... Qf3+ {[%clk 0:00:11.2]} 52. Kg1 {[%clk
0:00:13.2]} 52... Nf4 {[%clk 0:00:11.7]} 53. Qe5+ {[%clk 0:00:12.6]} 53... Kh7
{[%clk 0:00:10.1]} 54. Qe7+ {[%clk 0:00:11.8]} 54... Kh6 {[%clk 0:00:10.6]} 55.
Qf8+ {[%clk 0:00:11.7]} 55... Kh7 {[%clk 0:00:10.3]} 56. Qf7+ {[%clk 0:00:11.3]}
56... Kh8 {[%clk 0:00:10.6]} 57. Qf8+ {[%clk 0:00:11.2]} 57... Kh7 {[%clk
0:00:11]} 58. Qe7+ {[%clk 0:00:11.4]} 58... Kh8 {[%clk 0:00:11.2]} 59. Qf8+
{[%clk 0:00:11.3]} 59... Kh7 {[%clk 0:00:11.8]} 1/2-1/2

[Event "*** Titled Tuesday Blitz"]
[Site "Chess.com"]
[Date "2020.04.21"]
[Round "1"]
[White "jonaszmb"]
[Black "nihalsarin"]
[Result "0-1"]
[WhiteElo "2475"]
[BlackElo "3051"]
[TimeControl "180+1"]
[EndTime "10:08:15 PDT"]
[Termination "nihalsarin won by resignation"]

1. d4 {[%clk 0:03:00.9]} 1... Nf6 {[%clk 0:02:52.8]} 2. c4 {[%clk 0:03:00.9]}
2... g6 {[%clk 0:02:52.7]} 3. Nf3 {[%clk 0:03:00.8]} 3... Bg7 {[%clk 0:02:52.8]}
4. g3 {[%clk 0:03:01.2]} 4... O-O {[%clk 0:02:43.7]} 5. Bg2 {[%clk 0:03:00.4]}
5... d6 {[%clk 0:02:44.6]} 6. O-O {[%clk 0:03:00.1]} 6... Ne4 {[%clk 0:02:45.2]}
7. Nbd2 {[%clk 0:02:54.5]} 7... Nxd2 {[%clk 0:02:39.2]} 8. Bxd2 {[%clk
0:02:55.4]} 8... e5 {[%clk 0:02:36.8]} 9. dxe5 {[%clk 0:02:41]} 9... dxe5 {[%clk
0:02:37.7]} 10. Bb4 {[%clk 0:02:40.9]} 10... Qxd1 {[%clk 0:02:31.1]} 11. Raxd1
{[%clk 0:02:39.4]} 11... Re8 {[%clk 0:02:32]} 12. Bc3 {[%clk 0:02:15]} 12... e4
{[%clk 0:01:37.6]} 13. Nd4 {[%clk 0:02:09.3]} 13... c6 {[%clk 0:01:36.8]} 14.
Nc2 {[%clk 0:01:09.6]} 14... Bxc3 {[%clk 0:01:32.3]} 15. bxc3 {[%clk 0:01:10.5]}
15... Na6 {[%clk 0:01:32.3]} 16. Rb1 {[%clk 0:00:29.7]} 16... Nc5 {[%clk
0:01:21.1]} 17. Nd4 {[%clk 0:00:28.8]} 17... f5 {[%clk 0:01:05]} 18. Nb3 {[%clk
0:00:28.7]} 18... Na4 {[%clk 0:01:05]} 19. Rfc1 {[%clk 0:00:27.4]} 19... Re7
{[%clk 0:00:39.6]} 20. e3 {[%clk 0:00:22.3]} 20... Be6 {[%clk 0:00:35.7]} 21.
Na5 {[%clk 0:00:22]} 21... Nc5 {[%clk 0:00:33.3]} 22. Bf1 {[%clk 0:00:19.6]}
22... Rd8 {[%clk 0:00:33.1]} 23. Rd1 {[%clk 0:00:16.1]} 23... Red7 {[%clk
0:00:28.9]} 24. Rxd7 {[%clk 0:00:13.8]} 24... Rxd7 {[%clk 0:00:29.8]} 25. Nb3
{[%clk 0:00:14.1]} 25... Na4 {[%clk 0:00:26.8]} 26. Nd4 {[%clk 0:00:11.8]} 26...
Kf7 {[%clk 0:00:24.6]} 27. Rb3 {[%clk 0:00:03.8]} 27... Nc5 {[%clk 0:00:19.2]}
28. Ra3 {[%clk 0:00:04.3]} 28... a6 {[%clk 0:00:15.4]} 29. Nxe6 {[%clk
0:00:04.5]} 29... Kxe6 {[%clk 0:00:15.4]} 30. Kg2 {[%clk 0:00:05]} 30... Rd2
{[%clk 0:00:15.1]} 31. Ra5 {[%clk 0:00:05.1]} 31... b6 {[%clk 0:00:15.5]} 32.
Ra3 {[%clk 0:00:04.5]} 32... a5 {[%clk 0:00:15.9]} 33. h4 {[%clk 0:00:03.6]}
33... h6 {[%clk 0:00:11]} 34. g4 {[%clk 0:00:04.1]} 34... fxg4 {[%clk
0:00:10.6]} 35. Kg3 {[%clk 0:00:04.7]} 35... h5 {[%clk 0:00:11.1]} 36. Kg2
{[%clk 0:00:02.3]} 36... Ke5 {[%clk 0:00:11.3]} 37. Kg3 {[%clk 0:00:02.7]} 37...
Rb2 {[%clk 0:00:11.3]} 38. Kg2 {[%clk 0:00:02.6]} 38... Rc2 {[%clk 0:00:09.5]}
39. Kg1 {[%clk 0:00:02.4]} 39... Rc1 {[%clk 0:00:07.6]} 40. Kg2 {[%clk
0:00:01.9]} 40... Rb1 {[%clk 0:00:08.1]} 41. Kg1 {[%clk 0:00:01.7]} 41... Nd3
{[%clk 0:00:08]} 42. Kg2 {[%clk 0:00:02.6]} 42... Ne1+ {[%clk 0:00:07.9]} 43.
Kg1 {[%clk 0:00:02.4]} 43... Nf3+ {[%clk 0:00:08]} 44. Kg2 {[%clk 0:00:02.9]}
44... Nxh4+ {[%clk 0:00:08.6]} 45. Kg1 {[%clk 0:00:03.5]} 45... Nf3+ {[%clk
0:00:09.2]} 46. Kg2 {[%clk 0:00:04]} 46... h4 {[%clk 0:00:07.3]} 47. Rb3 {[%clk
0:00:04.5]} 47... h3+ {[%clk 0:00:07.4]} 48. Kg3 {[%clk 0:00:04.8]} 48... Rxf1
{[%clk 0:00:07.5]} 49. Rxb6 {[%clk 0:00:04.4]} 49... h2 {[%clk 0:00:07.8]} 50.
Rxc6 {[%clk 0:00:03.5]} 50... h1=Q {[%clk 0:00:07.8]} 0-1